fUSD/lending_fUSD_20250804
["ID","MTS","AMOUNT","RATE_DAILY","PERIOD"]
[377239429,1754305992386,-1142.6,0.00040547,2]
[377239430,1754305992396,-695.98,0.00040547,2]
[377239431,1754305992405,-400.0,0.00040547,2]
[377239432,1754305992415,-400.0,0.00040547,2]
[377239433,1754305992424,-793.48,0.00040547,2]
[377239434,1754305992434,-810.9,0.00040547,2]
[377239435,1754305992443,-1752.3,0.00040547,2]
[377239436,1754305992457,-400.0,0.00040547,2]
[377239437,1754305992473,-1639.2,0.00040547,2]
[377239438,1754305992483,-1057.57,0.00040547,2]
[377239439,1754305992492,-1899.23,0.00040547,2]
[377239440,1754305992502,-400.0,0.00040547,2]
[377239441,1754305992511,-1894.1,0.00040547,2]
[377239442,1754305992520,-400.0,0.00040547,2]
[377239443,1754305992530,-400.0,0.00040547,2]
[377239444,1754305992540,-400.0,0.00040547,2]
[377239445,1754305992550,-1066.82,0.00040547,2]
[377239446,1754305992559,-1326.33,0.00040547,2]
[377239447,1754305992568,-405.69,0.00040547,2]
[377239448,1754305992578,-1189.48,0.00040547,2]
[377239449,1754305992587,-1704.15,0.00040547,2]
[377239450,1754305992596,-1046.61,0.00040547,2]
[377239451,1754305992606,-400.0,0.00040547,2]
[377239452,1754305992616,-833.04,0.00040547,2]
[377239453,1754305992625,-400.0,0.00040547,2]
[377239454,1754305992635,-684.99,0.00040547,2]
[377239455,1754305992645,-400.0,0.00040547,2]
[377239456,1754305992655,-925.69,0.00040547,2]
[377239457,1754305992664,-1612.63,0.00040547,2]
[377239458,1754305992673,-482.48,0.00040547,2]
[377239459,1754305992683,-596.8,0.00040547,2]
[377239460,1754305992692,-1463.3,0.00040547,2]
[377239461,1754305992702,-1295.25,0.00040547,2]
[377239462,1754305992711,-2145.64,0.00040547,2]
[377239463,1754305992721,-1283.66,0.00040547,2]
[377239464,1754305992730,-758.52,0.00040547,2]
[377239465,1754305992741,-400.0,0.00040547,2]
[377239466,1754305992751,-292.63682203,0.00040547,2]
[377239467,1754305992761,-400.0,0.00040547,2]
[377239468,1754305992771,-721.69,0.00040547,2]
[377239469,1754305992780,-7192.74,0.00040547,2]
[377239470,1754305992790,-988.46,0.00040547,2]
[377239471,1754305992800,-896.0,0.00040547,2]
[377239472,1754305992810,-453.42,0.00040547,2]
[377239473,1754305992819,-766.66,0.00040547,2]
[377239474,1754305992829,-400.0,0.00040547,2]
[377239475,1754305992839,-627.97,0.00040547,2]
[377239476,1754305992849,-400.0,0.00040547,2]
[377239477,1754305992858,-400.0,0.00040547,2]
[377239478,1754305992868,-1762.88,0.00040547,2]
[377239479,1754305992878,-1472.33,0.00040547,2]
[377239480,1754305992888,-400.0,0.00040547,2]
[377239481,1754305992898,-400.0,0.00040547,2]
[377239482,1754305992907,-490.0,0.00040547,2]
[377239483,1754305992918,-1303.02,0.00040547,2]
[377239484,1754305992930,-796.7,0.00040547,2]
[377239485,1754305992940,-1414.12,0.00040547,2]
[377239486,1754305992950,-400.0,0.00040547,2]
[377239487,1754305992960,-700.57,0.00040547,2]
[377239488,1754305992969,-986.33,0.00040547,2]
[377239489,1754305992978,-553.07,0.00040547,2]
[377239490,1754305992988,-658.58,0.00040547,2]
[377239491,1754305992998,-400.0,0.00040547,2]
[377239492,1754305993008,-400.0,0.00040547,2]
[377239493,1754305993017,-499.21,0.00040547,2]
[377239494,1754305993026,-1836.51,0.00040547,2]
[377239495,1754305993037,-1050.51,0.00040547,2]
[377239496,1754305993046,-682.1,0.00040547,2]
[377239497,1754305993056,-739.68,0.00040547,2]
[377239498,1754305993065,-1274.01,0.00040547,2]
[377239499,1754305993075,-400.0,0.00040547,2]
[377239500,1754305993085,-651.05,0.00040547,2]
[377239501,1754305993094,-1321.92,0.00040547,2]
[377239502,1754305993104,-1303.02,0.00040547,2]
[377239503,1754305993113,-400.0,0.00040547,2]
[377239504,1754305993123,-822.07,0.00040547,2]
[377239505,1754305993136,-999.83,0.00040547,2]
[377239506,1754305993145,-1091.32,0.00040547,2]
[377239507,1754305993154,-400.0,0.00040547,2]
[377239508,1754305993164,-596.36,0.00040547,2]
[377239509,1754305993173,-562.8,0.00040547,2]
[377239510,1754305993182,-1242.64,0.00040547,2]
[377239511,1754305993192,-558.09,0.00040547,2]
[377239512,1754305993201,-793.84,0.00040547,2]
[377239513,1754305993210,-1330.82,0.00040547,2]
[377239514,1754305993472,-1446.54,0.00040547,2]
[377239515,1754305993490,-1346.03,0.00040547,2]
[377239516,1754305993500,-879.7,0.00040547,2]
[377239517,1754305993510,-1481.75,0.00040547,2]
[377239518,1754305993519,-400.0,0.00040547,2]
[377239519,1754305993529,-400.0,0.00040547,2]
[377239520,1754305993539,-1081.44,0.00040547,2]
[377239521,1754305993548,-2294.74,0.00040547,2]
[377239522,1754305993557,-528.1,0.00040547,2]
[377239523,1754305993567,-768.31,0.00040547,2]
[377239524,1754305993576,-2185.11,0.00040547,2]
[377239525,1754305993586,-764.62,0.00040547,2]
[377239526,1754305993595,-400.0,0.00040547,2]
[377239527,1754305993604,-2154.11,0.00040547,2]
[377239528,1754305993614,-400.0,0.00040547,2]
[377239529,1754305993631,-670.62,0.00040547,2]
[377239530,1754305993640,-1687.51,0.00040547,2]
[377239531,1754305993650,-400.0,0.00040547,2]
[377239532,1754305993659,-1797.87,0.00040547,2]
[377239533,1754305993669,-884.68,0.00040547,2]
[377239534,1754305993679,-466.07,0.00040547,2]
[377239535,1754305993688,-659.47,0.00040547,2]
[377239536,1754305993698,-1427.05,0.00040547,2]
[377239537,1754305993707,-1547.49,0.00040547,2]
[377239538,1754305993716,-650.0,0.00040547,120]
[377239539,1754305993726,-430.38,0.00040547,2]
[377239540,1754305993735,-400.0,0.00040547,2]
[377239541,1754305993744,-400.0,0.00040547,2]
[377239542,1754305993754,-948.07,0.00040547,2]
[377239543,1754305993765,-1424.69,0.00040547,2]
[377239544,1754305993775,-1692.45,0.00040547,2]
[377239545,1754305993786,-1068.48,0.00040547,2]
[377239546,1754305993795,-870.74,0.00040547,2]
[377239547,1754305993805,-1630.8,0.00040547,2]
[377239548,1754305993814,-400.0,0.00040547,2]
[377239549,1754305993823,-840.48,0.00040547,2]
[377239550,1754305993833,-665.52,0.00040547,2]
[377239551,1754305993842,-469.7,0.00040547,2]
[377239552,1754305993851,-1702.7,0.00040547,2]
[377239553,1754305993862,-727.65,0.00040547,2]
[377239554,1754305993872,-1107.78,0.00040547,2]
[377239555,1754305993882,-1880.84,0.00040547,2]
[377239556,1754305993892,-400.0,0.00040547,2]
[377239557,1754305993901,-813.9,0.00040547,2]
[377239558,1754305993911,-874.7,0.00040547,2]
[377239559,1754305993924,-400.0,0.00040547,2]
[377239560,1754305993934,-426.16,0.00040547,2]
[377239561,1754305993944,-400.0,0.00040547,2]
[377239562,1754305993953,-665.68,0.00040547,2]
[377239563,1754305993965,-1110.47,0.00040547,2]
[377239564,1754305993974,-903.87,0.00040547,2]
[377239565,1754305993983,-400.0,0.00040547,2]
[377239566,1754305993994,-470.81,0.00040547,2]
[377239567,1754305994003,-1358.5,0.00040547,2]
[377239568,1754305994013,-440.85,0.00040547,2]
[377239569,1754305994022,-1647.73,0.00040547,2]
[377239570,1754305994032,-1246.04,0.00040547,2]
[377239571,1754305994042,-924.22,0.00040547,2]
[377239572,1754305994051,-472.86,0.00040547,2]
[377239573,1754305994061,-994.67,0.00040547,2]
[377239574,1754305994070,-1443.42,0.00040547,2]
[377239575,1754305994080,-770.36,0.00040547,2]
[377239576,1754305994091,-1946.52,0.00040547,2]
[377239577,1754305994101,-979.61,0.00040547,2]
[377239578,1754305994113,-400.0,0.00040547,2]
[377239579,1754305994125,-400.0,0.00040547,2]
[377239580,1754305994137,-400.0,0.00040547,2]
[377239581,1754305994147,-2101.73,0.00040547,2]
[377239582,1754305994162,-860.7,0.00040547,2]
[377239583,1754305994174,-645.5,0.00040547,2]
[377239584,1754305994183,-537.4,0.00040547,2]
[377239585,1754305994193,-537.04,0.00040547,2]
[377239586,1754305994203,-450.14,0.00040547,2]
[377239587,1754305994214,-456.48,0.00040547,2]
[377239588,1754305994223,-798.27,0.00040547,2]
[377239589,1754305994233,-1154.12,0.00040547,2]
[377239590,1754305994242,-1175.36,0.00040547,2]
[377239591,1754305994252,-1226.27,0.00040547,2]
[377239592,1754305994261,-939.52,0.00040547,2]
[377239593,1754305994270,-482.35,0.00040547,2]
[377239594,1754305994281,-400.0,0.00040547,2]
[377239595,1754305994290,-786.99,0.00040547,2]
[377239596,1754305994300,-842.4,0.00040547,2]
[377239597,1754305994309,-869.19,0.00040547,2]
[377239598,1754305994319,-400.0,0.00040547,2]
[377239599,1754305994328,-700.37,0.00040547,2]
[377239600,1754305994337,-400.0,0.00040547,2]
[377239601,1754305994346,-1791.49,0.00040547,2]
[377239602,1754305994356,-1221.49,0.00040547,2]
[377239603,1754305994365,-1000.94,0.00040547,2]
[377239604,1754305994374,-400.0,0.00040547,2]
[377239605,1754305994383,-1747.77,0.00040547,2]
[377239606,1754305994392,-400.0,0.00040547,2]
[377239607,1754305994401,-991.24,0.00040547,2]
[377239608,1754305994411,-1316.83,0.00040547,2]
[377239609,1754305994420,-755.49,0.00040547,2]
[377239610,1754305994430,-1344.32,0.00040547,2]
[377239611,1754305994439,-778.88,0.00040547,2]
[377239612,1754305994449,-1539.3,0.00040547,2]
[377239613,1754305994458,-444.22,0.00040547,2]
[377239614,1754305994468,-1258.35,0.00040547,2]
[377239615,1754305994478,-400.0,0.00040547,2]
[377239616,1754305994487,-400.0,0.00040547,2]
[377239617,1754305994497,-400.0,0.00040547,2]
[377239618,1754305994506,-1113.84,0.00040547,2]
[377239619,1754305994516,-1182.86,0.00040547,2]
[377239620,1754305994526,-4729.89,0.00040547,2]
[377239621,1754305994536,-1278.85,0.00040547,2]
[377239622,1754305994545,-454.82,0.00040547,2]
[377239623,1754305994554,-1031.98,0.00040547,2]
[377239624,1754305994564,-775.41,0.00040547,2]
[377239625,1754305994574,-400.0,0.00040547,2]
[377239626,1754305994583,-1202.77,0.00040547,2]
[377239627,1754305994592,-400.0,0.00040547,2]
[377239628,1754305994601,-492.55,0.00040547,2]
[377239629,1754305994610,-400.0,0.00040547,2]
[377239630,1754305994619,-400.0,0.00040547,2]
[377239631,1754305994629,-1481.93,0.00040547,2]
[377239632,1754305994639,-1675.62,0.00040547,2]
[377239633,1754305994648,-584.39,0.00040547,2]
[377239634,1754305994657,-679.61,0.00040547,2]
[377239635,1754305994666,-744.37,0.00040547,2]
[377239636,1754305994676,-2502.12,0.00040547,2]
[377239637,1754305994685,-1340.53,0.00040547,2]
[377239638,1754305994694,-815.04,0.00040547,2]
[377239639,1754305994703,-1484.28,0.00040547,2]
[377239640,1754305994712,-400.0,0.00040547,2]
[377239641,1754305994721,-1012.72,0.00040547,2]
[377239642,1754305994731,-2328.28,0.00040547,2]
[377239643,1754305994740,-1969.15,0.00040547,2]
[377239644,1754305994749,-1435.3,0.00040547,2]
[377239645,1754305994759,-400.0,0.00040547,2]
[377239646,1754305994768,-400.0,0.00040547,2]
[377239647,1754305994779,-400.0,0.00040547,2]
[377239648,1754305994788,-913.42,0.00040547,2]
[377239649,1754305994798,-377.23995981,0.00040547,2]
[377239650,1754305994807,-1703.95,0.00040547,2]
[377239651,1754305994817,-2504.25,0.00040547,2]
[377239652,1754305994827,-400.0,0.00040547,2]
[377239653,1754305994836,-741.38,0.00040547,2]
[377239654,1754305994846,-1030.22,0.00040547,2]
[377239655,1754305994856,-400.0,0.00040547,2]
[377239656,1754305994865,-400.0,0.00040547,2]
[377239657,1754305994874,-400.0,0.00040547,2]
[377239658,1754305994884,-400.0,0.00040547,2]
[377239659,1754305994894,-1237.75,0.00040547,2]
[377239660,1754305994903,-400.0,0.00040547,2]
[377239661,1754305994913,-623.67,0.00040547,2]
[377239662,1754305994926,-400.0,0.00040547,2]
[377239663,1754305994936,-992.32,0.00040547,2]
[377239664,1754305994945,-602.81,0.00040547,2]
[377239665,1754305994955,-400.0,0.00040547,2]
[377239666,1754305994964,-400.0,0.00040547,2]
[377239667,1754305994974,-400.0,0.00040547,2]
[377239668,1754305994983,-537.5,0.00040547,2]
[377239669,1754305994993,-956.99,0.00040547,2]
[377239670,1754305995002,-630.59,0.00040547,2]
[377239671,1754305995012,-1585.73,0.00040547,2]
[377239672,1754305995022,-1301.61,0.00040547,2]
[377239673,1754305995031,-1889.25,0.00040547,2]
[377239674,1754305995041,-924.72,0.00040547,2]
[377239675,1754305995051,-641.71,0.00040547,2]
[377239676,1754305995061,-400.0,0.00040547,2]
[377239677,1754305995070,-400.0,0.00040547,2]
[377239678,1754305995079,-1059.24,0.00040547,2]
[377239679,1754305995089,-2092.15,0.00040547,2]
[377239680,1754305995099,-533.38,0.00040547,2]
[377239681,1754305995108,-890.3,0.00040547,2]
[377239682,1754305995118,-501.38,0.00040547,2]
[377239683,1754305995128,-1366.75,0.00040547,2]
[377239684,1754305995137,-990.2,0.00040547,2]
[377239685,1754305995147,-1441.16,0.00040547,2]
[377239686,1754305995156,-545.68,0.00040547,2]
[377239687,1754305995167,-690.08,0.00040547,2]
[377239688,1754305995176,-400.0,0.00040547,2]
[377239689,1754305995186,-803.42,0.00040547,2]
[377239690,1754305995195,-645.51,0.00040547,2]
[377239691,1754305995205,-400.0,0.00040547,2]
[377239692,1754305995215,-726.21,0.00040547,2]
[377239693,1754305995225,-400.0,0.00040547,2]
[377239694,1754305995234,-400.0,0.00040547,2]
[377239695,1754305995245,-400.0,0.00040547,2]
[377239696,1754305995255,-400.0,0.00040547,2]
[377239697,1754305995266,-506.95,0.00040547,2]
[377239698,1754305995277,-788.62,0.00040547,2]
[377239699,1754305995287,-931.05,0.00040547,2]
[377239700,1754305995296,-400.0,0.00040547,2]
[377239701,1754305995306,-2071.07,0.00040547,2]
[377239702,1754305995316,-552.88,0.00040547,2]
[377239703,1754305995326,-1077.59,0.00040547,2]
[377239704,1754305995335,-400.0,0.00040547,2]
[377239705,1754305995344,-400.0,0.00040547,2]
[377239706,1754305995354,-1479.72,0.00040547,2]
[377239707,1754305995364,-163.4123151,0.00040547,2]
[377239708,1754305995373,-551.2,0.00040547,2]
[377239709,1754305995383,-400.0,0.00040547,2]
[377239710,1754305995392,-418.78,0.00040547,120]
[377239711,1754305995402,-400.0,0.00040547,2]
[377239712,1754305995411,-628.0,0.00040547,2]
[377239713,1754305995420,-400.0,0.00040547,2]
[377239714,1754305995430,-400.0,0.00040547,2]
[377239715,1754305995440,-400.0,0.00040547,2]
[377239716,1754305995449,-1186.41,0.00040547,2]
[377239717,1754305995459,-1047.92,0.00040547,2]
[377239718,1754305995469,-1368.23,0.00040547,2]
[377239719,1754305995479,-882.59,0.00040547,2]
[377239720,1754305995488,-845.07,0.00040547,2]
[377239721,1754305995498,-627.42,0.00040547,2]
[377239722,1754305995507,-1654.02,0.00040547,2]
[377239723,1754305995517,-928.07,0.00040547,2]
[377239724,1754305995526,-1022.16,0.00040547,2]
[377239725,1754305995536,-463.65,0.00040547,2]
[377239726,1754305995546,-987.02,0.00040547,2]
[377239727,1754305995555,-1457.97,0.00040547,2]
[377239728,1754305995564,-400.0,0.00040547,2]
[377239729,1754305995574,-1127.8,0.00040547,2]
[377239730,1754305995583,-1263.43,0.00040547,2]
[377239731,1754305995593,-732.77,0.00040547,2]
[377239732,1754305995602,-400.0,0.00040547,2]
[377239733,1754305995612,-1212.72,0.00040547,2]
[377239734,1754305995622,-1364.75,0.00040547,2]
[377239735,1754305995632,-1963.71,0.00040547,2]
[377239736,1754305995641,-669.31,0.00040547,2]
[377239737,1754305995651,-3088.08,0.00040547,2]
[377239738,1754305995661,-400.0,0.00040547,2]
[377239739,1754305995670,-400.0,0.00040547,2]
[377239740,1754305995680,-1725.86,0.00040547,2]
[377239741,1754305995689,-1338.78,0.00040547,2]
[377239742,1754305995699,-1049.12,0.00040547,2]
[377239743,1754305995709,-470.83,0.00040547,2]
[377239744,1754305995719,-1157.0,0.00040547,2]
[377239745,1754305995729,-400.0,0.00040547,2]
[377239746,1754305995738,-400.0,0.00040547,2]
[377239747,1754305995747,-888.73,0.00040547,2]
[377239748,1754305995756,-719.82,0.00040547,2]
[377239749,1754305995766,-574.83,0.00040547,2]
[377239750,1754305995775,-1718.88,0.00040547,2]
[377239751,1754305995784,-400.0,0.00040547,2]
[377239752,1754305995794,-400.0,0.00040547,2]
[377239753,1754305995803,-1630.61,0.00040547,2]
[377239754,1754305995813,-400.0,0.00040547,2]
[377239755,1754305995822,-629.17,0.00040547,2]
[377239756,1754305995832,-495.53595603,0.00040547,2]
[377239757,1754305995841,-1303.32,0.00040547,2]
[377239758,1754305995851,-666.66,0.00040547,2]
[377239759,1754305995860,-603.36,0.00040547,2]
[377239760,1754305995870,-495.64,0.00040547,2]
[377239761,1754305995879,-1485.45,0.00040547,2]
[377239762,1754305995889,-718.11,0.00040547,2]
[377239763,1754305995898,-400.0,0.00040547,2]
[377239764,1754305995907,-1527.44,0.00040547,2]
[377239765,1754305995918,-1307.14,0.00040547,2]
[377239766,1754305996047,-400.0,0.00040547,2]
[377239767,1754305996057,-1110.24,0.00040547,2]
[377239768,1754305996066,-869.15,0.00040547,2]
[377239769,1754305996076,-536.27,0.00040547,2]
[377239770,1754305996085,-1091.81,0.00040547,2]
[377239771,1754305996095,-966.32,0.00040547,2]
[377239772,1754305996105,-1130.18,0.00040547,2]
[377239773,1754305996114,-400.0,0.00040547,2]
[377239774,1754305996123,-1117.05,0.00040547,2]
[377239775,1754305996133,-905.65,0.00040547,2]
[377239776,1754305996142,-1075.79,0.00040547,2]
[377239777,1754305996152,-471.33,0.00040547,2]
[377239778,1754305996162,-400.0,0.00040547,2]
[377239779,1754305996171,-798.59,0.00040547,2]
[377239780,1754305996180,-400.0,0.00040547,2]
[377239781,1754305996190,-1354.83,0.00040547,2]
[377239782,1754305996201,-1284.95,0.00040547,2]
[377239783,1754305996211,-489.97617692,0.00040547,2]
[377239784,1754305996220,-912.08,0.00040547,2]
[377239785,1754305996230,-1268.26,0.00040547,2]
[377239786,1754305996240,-312.62263788,0.00040547,2]
[377239787,1754305996249,-1400.07,0.00040547,2]
[377239788,1754305996259,-862.24,0.00040547,2]
[377239789,1754305996269,-631.36,0.00040547,2]
[377239790,1754305996278,-699.87,0.00040547,2]
[377239791,1754305996288,-1343.86,0.00040547,2]
[377239792,1754305996298,-743.43,0.00040547,2]
[377239793,1754305996308,-418.89,0.00040547,2]
[377239794,1754305996318,-616.73,0.00040547,2]
[377239795,1754305996328,-400.0,0.00040547,2]
[377239796,1754305996338,-400.0,0.00040547,2]
[377239797,1754305996347,-927.18,0.00040547,2]
[377239798,1754305996356,-875.84,0.00040547,2]
[377239799,1754305996366,-400.0,0.00040547,2]
[377239800,1754305996376,-1329.19,0.00040547,2]
[377239801,1754305996386,-434.19,0.00040547,2]
[377239802,1754305996395,-1658.94,0.00040547,2]
[377239803,1754305996404,-1333.24,0.00040547,2]
[377239804,1754305996414,-1252.38,0.00040547,2]
[377239805,1754305996423,-400.0,0.00040547,2]
[377239806,1754305996434,-967.63,0.00040547,2]
[377239807,1754305996443,-1263.4,0.00040547,2]
[377239808,1754305996453,-400.0,0.00040547,2]
[377239809,1754305996462,-414.76,0.00040547,2]
[377239810,1754305996472,-400.0,0.00040547,2]
[377239811,1754305996481,-944.68,0.00040547,2]
[377239812,1754305996491,-400.0,0.00040547,2]
[377239813,1754305996500,-412.29,0.00040547,2]
[377239814,1754305996511,-605.41,0.00040547,2]
[377239815,1754305996520,-1748.2,0.00040547,2]
[377239816,1754305996530,-886.22,0.00040547,2]
[377239817,1754305996539,-1117.53,0.00040547,2]
[377239818,1754305996549,-2048.38,0.00040547,2]
[377239819,1754305996559,-3038.05,0.00040547,2]
[377239820,1754305996568,-400.0,0.00040547,2]
[377239821,1754305996578,-611.63,0.00040547,2]
[377239822,1754305996587,-400.0,0.00040547,2]
[377239823,1754305996596,-673.68,0.00040547,2]
[377239824,1754305996605,-1068.97,0.00040547,2]
[377239825,1754305996615,-841.94,0.00040547,2]
[377239826,1754305996624,-590.51,0.00040547,2]
[377239827,1754305996634,-1348.61,0.00040547,2]
[377239828,1754305996643,-4263.58,0.00040547,2]
[377239829,1754305996652,-400.0,0.00040547,2]
[377239830,1754305996661,-400.0,0.00040547,2]
[377239831,1754305996671,-661.31,0.00040547,2]
[377239832,1754305996680,-1374.4,0.00040547,2]
[377239833,1754305996689,-1778.85,0.00040547,2]
[377239834,1754305996699,-888.64,0.00040547,2]
[377239835,1754305996708,-400.0,0.00040547,2]
[377239836,1754305996718,-1281.23,0.00040547,2]
[377239837,1754305996728,-1558.5,0.00040547,2]
[377239838,1754305996738,-632.03,0.00040547,2]
[377239839,1754305996748,-838.38,0.00040547,2]
[377239840,1754305996758,-1793.86,0.00040547,2]
[377239841,1754305996770,-719.42,0.00040547,2]
[377239842,1754305996779,-2346.34,0.00040547,2]
[377239843,1754305996789,-2208.08,0.00040547,2]
[377239844,1754305996799,-400.0,0.00040547,2]
[377239845,1754305996809,-6220.24,0.00040547,2]
[377239846,1754305996818,-2121.06,0.00040547,2]
[377239847,1754305996828,-2028.4,0.00040547,2]
[377239848,1754305996837,-959.16,0.00040547,2]
[377239849,1754305996847,-1009.99,0.00040547,2]
[377239850,1754305996856,-400.0,0.00040547,2]
[377239851,1754305996866,-1169.71,0.00040547,2]
[377239852,1754305996875,-693.34,0.00040547,2]
[377239853,1754305996885,-1366.07,0.00040547,2]
[377239854,1754305996895,-1421.12,0.00040547,2]
[377239855,1754305996905,-1689.54,0.00040547,2]
[377239856,1754305996914,-1110.66,0.00040547,2]
[377239857,1754305996926,-487.34,0.00040547,2]
[377239858,1754305996936,-401.93,0.00040547,2]
[377239859,1754305996946,-2122.58,0.00040547,2]
[377239860,1754305996955,-548.21,0.00040547,2]
[377239861,1754305996965,-2428.92,0.00040547,2]
[377239862,1754305996975,-1096.89,0.00040547,2]
[377239863,1754305996985,-400.0,0.00040547,2]
[377239864,1754305996994,-400.0,0.00040547,2]
[377239865,1754305997004,-400.0,0.00040547,2]
[377239866,1754305997013,-558.13,0.00040547,2]
[377239867,1754305997023,-1162.47,0.00040547,2]
[377239868,1754305997032,-683.16,0.00040547,2]
[377239869,1754305997042,-4527.79,0.00040547,2]
[377239870,1754305997051,-400.0,0.00040547,2]
[377239871,1754305997060,-688.63,0.00040547,2]
[377239872,1754305997070,-400.0,0.00040547,2]
[377239873,1754305997080,-545.20934983,0.00040547,2]
[377239874,1754305997089,-787.49,0.00040547,2]
[377239875,1754305997099,-400.0,0.00040547,2]
[377239876,1754305997111,-5396.72,0.00040547,2]
[377239877,1754305997120,-1940.04,0.00040547,2]
[377239878,1754305997129,-642.79,0.00040547,2]
[377239879,1754305997139,-400.0,0.00040547,2]
[377239880,1754305997148,-400.0,0.00040547,2]
[377239881,1754305997158,-4563.07,0.00040547,2]
[377239882,1754305997167,-1973.82,0.00040547,2]
[377239883,1754305997176,-1666.37,0.00040547,2]
[377239884,1754305997186,-400.0,0.00040547,2]
[377239885,1754305997195,-400.0,0.00040547,2]
[377239886,1754305997204,-524.97,0.00040547,2]
[377239887,1754305997214,-962.89,0.00040547,2]
[377239888,1754305997224,-778.62,0.00040547,2]
[377239889,1754305997233,-1536.5,0.00040547,2]
[377239890,1754305997243,-1125.71,0.00040547,2]
[377239891,1754305997252,-802.26,0.00040547,2]
[377239892,1754305997262,-8227.11,0.00040547,2]
[377239893,1754305997271,-400.0,0.00040547,2]
[377239894,1754305997281,-2940.43,0.00040547,2]
[377239895,1754305997291,-770.91,0.00040547,2]
[377239896,1754305997301,-11138.27,0.00040547,2]
[377239897,1754305997311,-458.47,0.00040547,2]
[377239898,1754305997321,-2047.73,0.00040547,2]
[377239899,1754305997330,-1728.23,0.00040547,2]
[377239900,1754305997340,-2159.66,0.00040547,2]
[377239901,1754305997350,-1756.78,0.00040547,2]
[377239902,1754305997360,-445.29,0.00040547,2]
[377239903,1754305997370,-2736.99,0.00040547,2]
[377239904,1754305997380,-1618.06,0.00040547,2]
[377239905,1754305997389,-581.83,0.00040547,2]
[377239906,1754305997398,-893.35,0.00040547,2]
[377239907,1754305997408,-9079.6,0.00040547,2]
[377239908,1754305997417,-1865.31,0.00040547,2]
[377239909,1754305997427,-400.0,0.00040547,2]
[377239910,1754305997437,-1394.73,0.00040547,2]
[377239911,1754305997447,-1087.63,0.00040547,2]
[377239912,1754305997457,-997.42,0.00040547,2]
[377239913,1754305997467,-3648.6,0.00040547,2]
[377239914,1754305997477,-510.65,0.00040547,2]
[377239915,1754305997487,-1873.61,0.00040547,2]
[377239916,1754305997497,-1200.71,0.00040547,2]
[377239917,1754305997507,-400.0,0.00040547,2]
[377239918,1754305997516,-520.48,0.00040547,2]
[377239919,1754305997526,-1629.46,0.00040547,2]
[377239920,1754305997535,-531.96,0.00040547,2]
[377239921,1754305997545,-875.07,0.00040547,2]
[377239922,1754305997555,-1001.01,0.00040547,2]
[377239923,1754305997564,-3451.49,0.00040547,2]
[377239924,1754305997574,-688.87,0.00040547,2]
[377239925,1754305997583,-6021.56,0.00040547,2]
[377239926,1754305997593,-400.0,0.00040547,2]
[377239927,1754305997603,-400.0,0.00040547,2]
[377239928,1754305997613,-659.18,0.00040547,2]